[Event "Betsys MČR v online bleskovém šachu 2021"]
[Site "Chess.com"]
[Date "2021.04.17"]
[Round "7"]
[White "BetsysBetting"]
[Black "pavelchrz"]
[Result "1/2-1/2"]
[WhiteElo "1905"]
[BlackElo "1715"]
[TimeControl "180+1"]
[EndTime "10:12:22 PDT"]
[Termination "Remíza opakováním pozice"]

1. d4 {[%clk 0:02:53.8]} 1... d5 {[%clk 0:02:55.7]} 2. Nf3 {[%clk 0:02:53.1]}
2... g6 {[%clk 0:02:53.5]} 3. g3 {[%clk 0:02:52.5]} 3... Bg7 {[%clk 0:02:53.7]}
4. Bg2 {[%clk 0:02:53]} 4... c5 {[%clk 0:02:54]} 5. O-O {[%clk 0:02:49.3]} 5...
cxd4 {[%clk 0:02:49.4]} 6. Nxd4 {[%clk 0:02:48.7]} 6... Nc6 {[%clk 0:02:49.9]}
7. Nxc6 {[%clk 0:02:47.4]} 7... bxc6 {[%clk 0:02:49.3]} 8. c4 {[%clk 0:02:48]}
8... Nf6 {[%clk 0:02:26.6]} 9. Nc3 {[%clk 0:02:43.7]} 9... d4 {[%clk 0:02:17.3]}
10. Bxc6+ {[%clk 0:02:39.1]} 10... Bd7 {[%clk 0:02:15.1]} 11. Bxd7+ {[%clk
0:02:15.1]} 11... Qxd7 {[%clk 0:02:13.8]} 12. Nb5 {[%clk 0:02:15.1]} 12... Ne4
{[%clk 0:01:58]} 13. e3 {[%clk 0:01:30.2]} 13... d3 {[%clk 0:01:49.1]} 14. Nd4
{[%clk 0:01:11.9]} 14... Bxd4 {[%clk 0:01:23.1]} 15. exd4 {[%clk 0:01:11.6]}
15... Qxd4 {[%clk 0:01:21.6]} 16. Qa4+ {[%clk 0:00:56]} 16... Kf8 {[%clk
0:01:18.8]} 17. Be3 {[%clk 0:00:49.7]} 17... Qxb2 {[%clk 0:01:04.8]} 18. Rab1
{[%clk 0:00:49.9]} 18... Qf6 {[%clk 0:00:59]} 19. Qa5 {[%clk 0:00:26.3]} 19...
Kg7 {[%clk 0:00:55.6]} 20. Qd5 {[%clk 0:00:26.2]} 20... Qe6 {[%clk 0:00:38.8]}
21. Bd4+ {[%clk 0:00:15.1]} 21... Nf6 {[%clk 0:00:35.1]} 22. Bxf6+ {[%clk
0:00:14]} 22... exf6 {[%clk 0:00:33.4]} 23. Qxd3 {[%clk 0:00:13.7]} 23... Rhd8
{[%clk 0:00:31.5]} 24. Qb3 {[%clk 0:00:12.6]} 24... Rab8 {[%clk 0:00:30.3]} 25.
Qxb8 {[%clk 0:00:09.5]} 25... Rxb8 {[%clk 0:00:30.2]} 26. Rxb8 {[%clk 0:00:10]}
26... Qxc4 {[%clk 0:00:30.8]} 27. Rb7 {[%clk 0:00:08.7]} 27... Qxa2 {[%clk
0:00:29.2]} 28. Re1 {[%clk 0:00:07.7]} 28... a5 {[%clk 0:00:28.8]} 29. Ree7
{[%clk 0:00:07.1]} 29... a4 {[%clk 0:00:28.5]} 30. Ra7 {[%clk 0:00:07.4]} 30...
a3 {[%clk 0:00:28.3]} 31. h4 {[%clk 0:00:07.6]} 31... Qb1+ {[%clk 0:00:25.6]}
32. Kg2 {[%clk 0:00:07.3]} 32... g5 {[%clk 0:00:21.3]} 33. Rxf7+ {[%clk
0:00:06.9]} 33... Kg6 {[%clk 0:00:21.6]} 34. g4 {[%clk 0:00:04.4]} 34... Qe4+
{[%clk 0:00:20.6]} 35. f3 {[%clk 0:00:04.5]} 35... Qe2+ {[%clk 0:00:19.6]} 36.
Kg3 {[%clk 0:00:05]} 36... Qe5+ {[%clk 0:00:19.7]} 37. Kf2 {[%clk 0:00:04.8]}
37... Qb2+ {[%clk 0:00:18.9]} 38. Kg1 {[%clk 0:00:04]} 38... Qb1+ {[%clk
0:00:16.8]} 39. Kf2 {[%clk 0:00:04.4]} 39... Qc2+ {[%clk 0:00:16.4]} 40. Kg1
{[%clk 0:00:04.2]} 40... Qd1+ {[%clk 0:00:16.3]} 41. Kf2 {[%clk 0:00:04.5]}
41... Qd2+ {[%clk 0:00:15.9]} 42. Kg1 {[%clk 0:00:04.7]} 42... Qe1+ {[%clk
0:00:15.7]} 43. Kg2 {[%clk 0:00:04.7]} 43... Qe2+ {[%clk 0:00:15.8]} 44. Kg1
{[%clk 0:00:04.3]} 44... Qe3+ {[%clk 0:00:15.8]} 45. Kg2 {[%clk 0:00:04.5]}
45... Qd2+ {[%clk 0:00:15.1]} 46. Kg1 {[%clk 0:00:04.7]} 46... Qd1+ {[%clk
0:00:14.5]} 47. Kg2 {[%clk 0:00:04.8]} 47... Qe2+ {[%clk 0:00:13.8]} 1/2-1/2

[Event "Betsys MČR v online bleskovém šachu 2021"]
[Site "Chess.com"]
[Date "2021.04.17"]
[Round "7"]
[White "Trener-Pokrocili"]
[Black "koky_3"]
[Result "1-0"]
[WhiteElo "2248"]
[BlackElo "2049"]
[TimeControl "180+1"]
[EndTime "10:12:32 PDT"]
[Termination "Uživatel Trener-Pokrocili zvítězil po vzdání soupeře"]

1. Nf3 {[%clk 0:03:00.9]} 1... c5 {[%clk 0:02:57.6]} 2. c4 {[%clk 0:03:00.4]}
2... e6 {[%clk 0:02:56.4]} 3. Nc3 {[%clk 0:03:00.1]} 3... Nc6 {[%clk 0:02:55.1]}
4. g3 {[%clk 0:02:59.4]} 4... d5 {[%clk 0:02:54.7]} 5. cxd5 {[%clk 0:02:59.4]}
5... exd5 {[%clk 0:02:54.8]} 6. d4 {[%clk 0:02:59.5]} 6... Nf6 {[%clk 0:02:49]}
7. Bg2 {[%clk 0:02:59.2]} 7... cxd4 {[%clk 0:02:46.4]} 8. Nxd4 {[%clk
0:02:58.7]} 8... Bc5 {[%clk 0:02:46.3]} 9. Nb3 {[%clk 0:02:52.7]} 9... Bb6
{[%clk 0:02:45.8]} 10. Nxd5 {[%clk 0:02:38.3]} 10... Nxd5 {[%clk 0:02:35.9]} 11.
Qxd5 {[%clk 0:02:37.7]} 11... Qf6 {[%clk 0:02:20.4]} 12. O-O {[%clk 0:02:20.9]}
12... O-O {[%clk 0:02:18.8]} 13. Qg5 {[%clk 0:02:16.1]} 13... Qe6 {[%clk
0:01:52]} 14. e3 {[%clk 0:01:58.9]} 14... h6 {[%clk 0:01:46.4]} 15. Qd5 {[%clk
0:01:54.1]} 15... Qf6 {[%clk 0:01:43.2]} 16. Qf3 {[%clk 0:01:51.3]} 16... Qg6
{[%clk 0:01:40.6]} 17. Bd2 {[%clk 0:01:39.5]} 17... Rd8 {[%clk 0:01:33.2]} 18.
Bc3 {[%clk 0:01:38.2]} 18... Bg4 {[%clk 0:01:31.7]} 19. Qf4 {[%clk 0:01:34.4]}
19... Rac8 {[%clk 0:01:27.7]} 20. h3 {[%clk 0:01:31.5]} 20... Be2 {[%clk
0:01:16.7]} 21. Rfe1 {[%clk 0:01:27.5]} 21... Ba6 {[%clk 0:01:11.3]} 22. Qe4
{[%clk 0:01:12.6]} 22... Qh5 {[%clk 0:01:01]} 23. g4 {[%clk 0:01:05.8]} 23...
Qh4 {[%clk 0:00:58.6]} 24. Red1 {[%clk 0:00:58.8]} 24... Be2 {[%clk 0:00:55.8]}
25. Rxd8+ {[%clk 0:00:56.6]} 25... Rxd8 {[%clk 0:00:55.4]} 26. Re1 {[%clk
0:00:54.9]} 26... Bd1 {[%clk 0:00:50.3]} 27. Nd2 {[%clk 0:00:45.4]} 27... Bxg4
{[%clk 0:00:16.8]} 28. Qxg4 {[%clk 0:00:41.3]} 28... Qxg4 {[%clk 0:00:16.5]} 29.
hxg4 {[%clk 0:00:41]} 29... Ba5 {[%clk 0:00:15.4]} 30. Nb3 {[%clk 0:00:38.3]}
30... Bxc3 {[%clk 0:00:14.6]} 31. bxc3 {[%clk 0:00:38.5]} 31... Ne5 {[%clk
0:00:14.7]} 32. g5 {[%clk 0:00:34.7]} 32... hxg5 {[%clk 0:00:14.2]} 33. Nd4
{[%clk 0:00:34.2]} 33... g4 {[%clk 0:00:13.7]} 34. Rb1 {[%clk 0:00:32.7]} 34...
b6 {[%clk 0:00:13.2]} 35. Rb5 {[%clk 0:00:31]} 35... f6 {[%clk 0:00:12.4]} 36.
Rd5 {[%clk 0:00:30.2]} 36... Rc8 {[%clk 0:00:12]} 37. Ne2 {[%clk 0:00:26.4]}
37... Nc4 {[%clk 0:00:11.3]} 38. Rd7 {[%clk 0:00:24.7]} 38... a5 {[%clk
0:00:10.4]} 39. Bd5+ {[%clk 0:00:23.9]} 39... Kh7 {[%clk 0:00:09.3]} 40. Bxc4
{[%clk 0:00:22.9]} 40... Rxc4 {[%clk 0:00:09.9]} 41. Rd4 {[%clk 0:00:22.9]}
41... Rc6 {[%clk 0:00:08.9]} 42. Rxg4 {[%clk 0:00:22.6]} 42... g5 {[%clk
0:00:08.9]} 43. Rd4 {[%clk 0:00:22.4]} 43... Kg6 {[%clk 0:00:08.8]} 44. Rd5
{[%clk 0:00:22.5]} 44... a4 {[%clk 0:00:07.9]} 45. Kf1 {[%clk 0:00:21.8]} 45...
Kf7 {[%clk 0:00:06.7]} 46. Ke1 {[%clk 0:00:21.1]} 46... Ke6 {[%clk 0:00:06.9]}
47. Rb5 {[%clk 0:00:20.2]} 47... Rc4 {[%clk 0:00:05.7]} 48. Rb4 {[%clk
0:00:19.2]} 48... Rc6 {[%clk 0:00:04.6]} 49. Nd4+ {[%clk 0:00:18.6]} 49... Kd5
{[%clk 0:00:02.1]} 50. Nxc6 {[%clk 0:00:18.7]} 50... Kxc6 {[%clk 0:00:03]} 51.
Rxa4 {[%clk 0:00:19.1]} 51... Kc5 {[%clk 0:00:03.8]} 52. Rb4 {[%clk 0:00:19.4]}
52... b5 {[%clk 0:00:04.3]} 53. Ke2 {[%clk 0:00:18.4]} 1-0

[Event "Betsys MČR v online bleskovém šachu 2021"]
[Site "Chess.com"]
[Date "2021.04.17"]
[Round "7"]
[White "Classemence"]
[Black "jonvon640"]
[Result "0-1"]
[WhiteElo "1905"]
[BlackElo "1688"]
[TimeControl "180+1"]
[EndTime "10:12:32 PDT"]
[Termination "Uživatel jonvon640 zvítězil matem"]

1. e4 {[%clk 0:03:00.9]} 1... c5 {[%clk 0:02:34.6]} 2. Nf3 {[%clk 0:03:00.6]}
2... Nc6 {[%clk 0:02:34]} 3. d4 {[%clk 0:03:00.7]} 3... cxd4 {[%clk 0:02:34.9]}
4. Nxd4 {[%clk 0:03:01.5]} 4... e6 {[%clk 0:02:34.5]} 5. Nxc6 {[%clk 0:03:00.3]}
5... bxc6 {[%clk 0:02:35.4]} 6. Be2 {[%clk 0:03:01]} 6... Nf6 {[%clk 0:02:34.9]}
7. Nd2 {[%clk 0:02:58.8]} 7... Bc5 {[%clk 0:02:32.7]} 8. O-O {[%clk 0:02:58.6]}
8... d5 {[%clk 0:02:29.8]} 9. Nb3 {[%clk 0:02:47.8]} 9... Bd6 {[%clk 0:02:24.1]}
10. Bf3 {[%clk 0:02:44.5]} 10... O-O {[%clk 0:02:19.3]} 11. Re1 {[%clk
0:02:44.3]} 11... Qc7 {[%clk 0:02:11.6]} 12. h3 {[%clk 0:02:43.6]} 12... Bb7
{[%clk 0:02:04.5]} 13. Bg5 {[%clk 0:02:38.6]} 13... Be7 {[%clk 0:02:01.5]} 14.
c3 {[%clk 0:02:27.6]} 14... Rfd8 {[%clk 0:01:53]} 15. Qe2 {[%clk 0:02:22.4]}
15... Ne8 {[%clk 0:01:40.6]} 16. Bxe7 {[%clk 0:02:20.9]} 16... Qxe7 {[%clk
0:01:41.5]} 17. Rad1 {[%clk 0:02:16.5]} 17... Nc7 {[%clk 0:01:34.9]} 18. Qe3
{[%clk 0:01:38]} 18... Na6 {[%clk 0:01:20.3]} 19. Qf4 {[%clk 0:01:33.9]} 19...
Qd6 {[%clk 0:01:15.9]} 20. Qg4 {[%clk 0:01:11.7]} 20... Qe7 {[%clk 0:01:04.4]}
21. e5 {[%clk 0:01:09.8]} 21... c5 {[%clk 0:01:01.1]} 22. Re3 {[%clk 0:00:59.9]}
22... c4 {[%clk 0:00:56.3]} 23. Nd4 {[%clk 0:00:59.5]} 23... Nc5 {[%clk
0:00:55.8]} 24. Rf1 {[%clk 0:00:47.9]} 24... Nd3 {[%clk 0:00:53.7]} 25. Rb1
{[%clk 0:00:26.3]} 25... Ba6 {[%clk 0:00:45.6]} 26. Bd1 {[%clk 0:00:25.3]} 26...
Rab8 {[%clk 0:00:43.3]} 27. Bc2 {[%clk 0:00:23]} 27... Rb6 {[%clk 0:00:40.9]}
28. Rg3 {[%clk 0:00:21]} 28... Qf8 {[%clk 0:00:37.8]} 29. h4 {[%clk 0:00:10]}
29... Nxe5 {[%clk 0:00:36.9]} 30. Qh5 {[%clk 0:00:05.8]} 30... Nd3 {[%clk
0:00:34.7]} 31. Qg4 {[%clk 0:00:03]} 31... e5 {[%clk 0:00:27]} 32. Nf3 {[%clk
0:00:02.8]} 32... e4 {[%clk 0:00:26.2]} 33. Ng5 {[%clk 0:00:03.1]} 33... h6
{[%clk 0:00:24.7]} 34. Nh3 {[%clk 0:00:03.7]} 34... Rg6 {[%clk 0:00:23]} 35. Qh5
{[%clk 0:00:03.1]} 35... Rxg3 {[%clk 0:00:22.8]} 36. fxg3 {[%clk 0:00:04]} 36...
Qc5+ {[%clk 0:00:20.8]} 37. Kh2 {[%clk 0:00:03.7]} 37... Nf2 {[%clk 0:00:19.9]}
38. Nf4 {[%clk 0:00:04.1]} 38... Nd3 {[%clk 0:00:17.3]} 39. Nxd3 {[%clk
0:00:04.2]} 39... cxd3 {[%clk 0:00:18]} 40. Bd1 {[%clk 0:00:04.2]} 40... e3
{[%clk 0:00:18.2]} 41. Bf3 {[%clk 0:00:04.1]} 41... e2 {[%clk 0:00:17.7]} 42.
Re1 {[%clk 0:00:02.3]} 42... d2 {[%clk 0:00:17.6]} 43. Rxe2 {[%clk 0:00:01.1]}
43... d1=Q {[%clk 0:00:17.3]} 44. Re8+ {[%clk 0:00:01.5]} 44... Rxe8 {[%clk
0:00:16.4]} 45. Bxd1 {[%clk 0:00:02.4]} 45... Re1 {[%clk 0:00:13.3]} 46. Bb3
{[%clk 0:00:03.1]} 46... Qg1+ {[%clk 0:00:11.9]} 47. Kh3 {[%clk 0:00:03.9]}
47... Bc8+ {[%clk 0:00:11.3]} 48. g4 {[%clk 0:00:03.6]} 48... Re3+ {[%clk
0:00:09.1]} 49. g3 {[%clk 0:00:03.2]} 49... Qh1# {[%clk 0:00:09.4]} 0-1

[Event "Betsys MČR v online bleskovém šachu 2021"]
[Site "Chess.com"]
[Date "2021.04.17"]
[Round "7"]
[White "Cimrman"]
[Black "tucnak64"]
[Result "1/2-1/2"]
[WhiteElo "2331"]
[BlackElo "2119"]
[TimeControl "180+1"]
[EndTime "10:12:33 PDT"]
[Termination "Remíza opakováním pozice"]

1. d4 {[%clk 0:02:52.7]} 1... Nf6 {[%clk 0:02:51.6]} 2. Nf3 {[%clk 0:02:51]}
2... c5 {[%clk 0:02:49.6]} 3. d5 {[%clk 0:02:48.5]} 3... e6 {[%clk 0:02:49.4]}
4. c4 {[%clk 0:02:47.8]} 4... exd5 {[%clk 0:02:49.8]} 5. cxd5 {[%clk 0:02:48.5]}
5... d6 {[%clk 0:02:49.9]} 6. Nc3 {[%clk 0:02:48.6]} 6... g6 {[%clk 0:02:49.6]}
7. g3 {[%clk 0:02:49]} 7... Bg7 {[%clk 0:02:49.3]} 8. Bg2 {[%clk 0:02:49.3]}
8... O-O {[%clk 0:02:44.9]} 9. O-O {[%clk 0:02:46.9]} 9... Re8 {[%clk
0:02:41.7]} 10. Bf4 {[%clk 0:02:40.7]} 10... a6 {[%clk 0:02:36.1]} 11. a4 {[%clk
0:02:38.1]} 11... Ne4 {[%clk 0:02:30.6]} 12. Nxe4 {[%clk 0:02:37.2]} 12... Rxe4
{[%clk 0:02:31.2]} 13. Nd2 {[%clk 0:02:37.2]} 13... Rb4 {[%clk 0:02:22.8]} 14.
Ra2 {[%clk 0:02:30.2]} 14... Qe7 {[%clk 0:02:19.8]} 15. e4 {[%clk 0:02:22.2]}
15... Nd7 {[%clk 0:02:17.2]} 16. Qc2 {[%clk 0:02:07.8]} 16... Ne5 {[%clk
0:02:13.7]} 17. b3 {[%clk 0:01:49.8]} 17... Bd7 {[%clk 0:02:05.9]} 18. Nc4
{[%clk 0:01:46.1]} 18... Nxc4 {[%clk 0:01:58.7]} 19. bxc4 {[%clk 0:01:47]} 19...
Be5 {[%clk 0:01:46.1]} 20. Bd2 {[%clk 0:01:45.9]} 20... a5 {[%clk 0:01:43]} 21.
Bxb4 {[%clk 0:01:38.5]} 21... cxb4 {[%clk 0:01:40]} 22. Qd3 {[%clk 0:01:24.5]}
22... Rc8 {[%clk 0:01:30.6]} 23. f4 {[%clk 0:01:23.4]} 23... Bc3 {[%clk
0:01:30.2]} 24. f5 {[%clk 0:01:00.2]} 24... Qe5 {[%clk 0:01:17.2]} 25. Kh1
{[%clk 0:00:55.2]} 25... Re8 {[%clk 0:01:06.8]} 26. f6 {[%clk 0:00:47.5]} 26...
b3 {[%clk 0:00:57.3]} 27. Raf2 {[%clk 0:00:42.5]} 27... h6 {[%clk 0:00:51.1]}
28. Rf3 {[%clk 0:00:37.3]} 28... Bd4 {[%clk 0:00:46.7]} 29. Qxb3 {[%clk
0:00:35.9]} 29... Qxe4 {[%clk 0:00:42.1]} 30. Qxb7 {[%clk 0:00:35]} 30... Bxa4
{[%clk 0:00:40.2]} 31. Qa6 {[%clk 0:00:28.4]} 31... Bc5 {[%clk 0:00:39]} 32.
Qxa5 {[%clk 0:00:26.8]} 32... Qxc4 {[%clk 0:00:38.8]} 33. Re1 {[%clk 0:00:23.3]}
33... Rxe1+ {[%clk 0:00:36.5]} 34. Qxe1 {[%clk 0:00:24.2]} 34... Qxd5 {[%clk
0:00:32]} 35. Rf4 {[%clk 0:00:24.2]} 35... Qc6 {[%clk 0:00:30]} 36. Qc1 {[%clk
0:00:20.2]} 36... Kh7 {[%clk 0:00:22.3]} 37. Rh4 {[%clk 0:00:17.4]} 37... h5
{[%clk 0:00:21.3]} 38. Rc4 {[%clk 0:00:15]} 38... Qa6 {[%clk 0:00:18.8]} 39. h4
{[%clk 0:00:14]} 39... Bc6 {[%clk 0:00:18.3]} 40. Bxc6 {[%clk 0:00:12.4]} 40...
Qxc6+ {[%clk 0:00:19.2]} 41. Kh2 {[%clk 0:00:12.9]} 41... Qf3 {[%clk 0:00:19.2]}
42. Qc2 {[%clk 0:00:10.3]} 42... Qf1 {[%clk 0:00:17.6]} 43. Rxc5 {[%clk
0:00:03.9]} 43... dxc5 {[%clk 0:00:16.6]} 44. Qxc5 {[%clk 0:00:04.8]} 44... Qxf6
{[%clk 0:00:16]} 45. Kg2 {[%clk 0:00:05.1]} 45... Qf5 {[%clk 0:00:15.8]} 46. Qe7
{[%clk 0:00:04.2]} 46... Qc2+ {[%clk 0:00:15.3]} 47. Kh3 {[%clk 0:00:04.3]}
47... Qf5+ {[%clk 0:00:15.2]} 48. Kg2 {[%clk 0:00:04.4]} 48... Qc2+ {[%clk
0:00:15.3]} 49. Kh3 {[%clk 0:00:04.7]} 49... Qf5+ {[%clk 0:00:15.3]} 50. Kg2
{[%clk 0:00:04.9]} 1/2-1/2

[Event "Betsys MČR v online bleskovém šachu 2021"]
[Site "Chess.com"]
[Date "2021.04.17"]
[Round "7"]
[White "HCMotorCB"]
[Black "Soural_J"]
[Result "1-0"]
[WhiteElo "2386"]
[BlackElo "2196"]
[TimeControl "180+1"]
[EndTime "10:12:35 PDT"]
[Termination "Uživatel HCMotorCB zvítězil po vzdání soupeře"]

1. d4 {[%clk 0:02:53.8]} 1... Nf6 {[%clk 0:02:59.9]} 2. c4 {[%clk 0:02:52.5]}
2... g6 {[%clk 0:03:00.3]} 3. g3 {[%clk 0:02:52.8]} 3... Bg7 {[%clk 0:02:59.6]}
4. Bg2 {[%clk 0:02:52.8]} 4... O-O {[%clk 0:03:00]} 5. Nf3 {[%clk 0:02:53.1]}
5... c6 {[%clk 0:02:59.7]} 6. O-O {[%clk 0:02:53.2]} 6... d5 {[%clk 0:02:59.8]}
7. Nbd2 {[%clk 0:02:53.3]} 7... Bf5 {[%clk 0:02:46.3]} 8. b3 {[%clk 0:02:52.8]}
8... Ne4 {[%clk 0:02:45.2]} 9. Bb2 {[%clk 0:02:50.8]} 9... Nd7 {[%clk 0:02:25]}
10. Nh4 {[%clk 0:02:47.7]} 10... Ndf6 {[%clk 0:02:18.7]} 11. Nxf5 {[%clk
0:02:44.4]} 11... gxf5 {[%clk 0:02:18.7]} 12. f3 {[%clk 0:02:38]} 12... Nd6
{[%clk 0:02:11.3]} 13. c5 {[%clk 0:02:34.6]} 13... Nde8 {[%clk 0:02:04.3]} 14.
Qc2 {[%clk 0:02:30.3]} 14... Nc7 {[%clk 0:01:52.6]} 15. Qxf5 {[%clk 0:02:25.5]}
15... Re8 {[%clk 0:01:51.5]} 16. f4 {[%clk 0:02:23.6]} 16... Ne6 {[%clk
0:01:43.1]} 17. e3 {[%clk 0:02:20.3]} 17... a5 {[%clk 0:01:37.1]} 18. a3 {[%clk
0:02:18.2]} 18... b6 {[%clk 0:01:35.3]} 19. b4 {[%clk 0:02:08.4]} 19... bxc5
{[%clk 0:01:30.3]} 20. bxc5 {[%clk 0:01:58.4]} 20... Rb8 {[%clk 0:01:29.7]} 21.
Bc3 {[%clk 0:01:57.5]} 21... Qc7 {[%clk 0:01:21]} 22. Rab1 {[%clk 0:01:54.4]}
22... a4 {[%clk 0:01:20.2]} 23. g4 {[%clk 0:01:42.1]} 23... Rb7 {[%clk
0:01:11.4]} 24. Rxb7 {[%clk 0:01:38.3]} 24... Qxb7 {[%clk 0:01:12.3]} 25. Rb1
{[%clk 0:01:37.6]} 25... Qa6 {[%clk 0:01:10]} 26. Bf1 {[%clk 0:01:37.5]} 26...
Qa7 {[%clk 0:01:08.2]} 27. g5 {[%clk 0:01:37]} 27... Nd7 {[%clk 0:01:04.3]} 28.
Bd3 {[%clk 0:01:31]} 28... Nef8 {[%clk 0:00:59.5]} 29. h4 {[%clk 0:01:30]} 29...
Rb8 {[%clk 0:00:51.6]} 30. Rxb8 {[%clk 0:01:24.3]} 30... Qxb8 {[%clk 0:00:51.1]}
31. h5 {[%clk 0:01:23.2]} 31... e6 {[%clk 0:00:48.9]} 32. Qg4 {[%clk 0:01:21.2]}
32... f5 {[%clk 0:00:46.6]} 33. Qd1 {[%clk 0:01:10.1]} 33... Qe8 {[%clk
0:00:40.1]} 34. Be2 {[%clk 0:01:06.5]} 34... Qa8 {[%clk 0:00:39.9]} 35. Qb1
{[%clk 0:01:04.7]} 35... Nb8 {[%clk 0:00:35]} 36. h6 {[%clk 0:00:57.1]} 36...
Bh8 {[%clk 0:00:34.1]} 37. Qb6 {[%clk 0:00:53.6]} 37... Nbd7 {[%clk 0:00:30.1]}
38. Qa5 {[%clk 0:00:49.9]} 38... Qb8 {[%clk 0:00:22.4]} 39. Qxa4 {[%clk
0:00:48.7]} 39... Ng6 {[%clk 0:00:19.4]} 40. Qxc6 {[%clk 0:00:44.6]} 40... Ndf8
{[%clk 0:00:18.6]} 41. Qb5 {[%clk 0:00:40.3]} 41... Qc7 {[%clk 0:00:16.8]} 42.
Qb6 {[%clk 0:00:36.3]} 42... Qe7 {[%clk 0:00:14.8]} 43. a4 {[%clk 0:00:33.3]}
43... Qd7 {[%clk 0:00:13.1]} 44. Bb5 {[%clk 0:00:30.7]} 44... Qf7 {[%clk
0:00:12.1]} 45. a5 {[%clk 0:00:28.7]} 45... Nxf4 {[%clk 0:00:11.7]} 46. exf4
{[%clk 0:00:28.4]} 46... Qh5 {[%clk 0:00:11.8]} 47. Kf2 {[%clk 0:00:20.1]} 47...
Qh3 {[%clk 0:00:10.9]} 48. Nf3 {[%clk 0:00:18.5]} 48... Qh1 {[%clk 0:00:08.1]}
49. Bf1 {[%clk 0:00:17.5]} 49... Qh5 {[%clk 0:00:03.3]} 50. a6 {[%clk
0:00:16.9]} 50... Bxd4+ {[%clk 0:00:02.7]} 51. Bxd4 {[%clk 0:00:16.2]} 51... e5
{[%clk 0:00:02.9]} 52. Bxe5 {[%clk 0:00:15.8]} 1-0

[Event "Betsys MČR v online bleskovém šachu 2021"]
[Site "Chess.com"]
[Date "2021.04.17"]
[Round "7"]
[White "androidddd"]
[Black "jarosymon"]
[Result "1-0"]
[WhiteElo "1436"]
[BlackElo "1752"]
[TimeControl "180+1"]
[EndTime "10:12:35 PDT"]
[Termination "Uživatel androidddd zvítězil na čas"]

1. e4 {[%clk 0:02:58.9]} 1... d5 {[%clk 0:01:00.3]} 2. exd5 {[%clk 0:02:57.5]}
2... Nf6 {[%clk 0:00:59.7]} 3. Nc3 {[%clk 0:02:56]} 3... Nxd5 {[%clk 0:00:58.6]}
4. Nxd5 {[%clk 0:02:55.8]} 4... Qxd5 {[%clk 0:00:57.8]} 5. Nf3 {[%clk
0:02:55.6]} 5... c6 {[%clk 0:00:57.7]} 6. b3 {[%clk 0:02:48.1]} 6... Bg4 {[%clk
0:00:56.8]} 7. Bc4 {[%clk 0:02:44.9]} 7... Qd6 {[%clk 0:00:54.2]} 8. Bb2 {[%clk
0:02:42.2]} 8... e5 {[%clk 0:00:52.7]} 9. Bxe5 {[%clk 0:02:22.9]} 9... Bxf3
{[%clk 0:00:51.4]} 10. Bxd6 {[%clk 0:02:18.3]} 10... Bxd1 {[%clk 0:00:49.8]} 11.
Bxf8 {[%clk 0:02:18.3]} 11... Kxf8 {[%clk 0:00:45.5]} 12. Rxd1 {[%clk
0:02:15.7]} 12... Nd7 {[%clk 0:00:45.3]} 13. O-O {[%clk 0:02:13.7]} 13... Nf6
{[%clk 0:00:41.4]} 14. d4 {[%clk 0:02:11.4]} 14... b5 {[%clk 0:00:40.6]} 15. Bd3
{[%clk 0:02:08]} 15... g6 {[%clk 0:00:39.9]} 16. Rfe1 {[%clk 0:02:05.8]} 16...
Re8 {[%clk 0:00:39.5]} 17. f3 {[%clk 0:01:58.3]} 17... Kg7 {[%clk 0:00:38.2]}
18. Kf2 {[%clk 0:01:55.2]} 18... Nd5 {[%clk 0:00:37.4]} 19. Rxe8 {[%clk
0:01:47.5]} 19... Rxe8 {[%clk 0:00:36]} 20. Re1 {[%clk 0:01:43.8]} 20... Rxe1
{[%clk 0:00:33.3]} 21. Kxe1 {[%clk 0:01:43.8]} 21... Nc3 {[%clk 0:00:33.2]} 22.
Be4 {[%clk 0:01:20.1]} 22... Nxa2 {[%clk 0:00:28.6]} 23. Bxc6 {[%clk 0:01:18.8]}
23... b4 {[%clk 0:00:28.5]} 24. Kd2 {[%clk 0:01:12]} 24... f6 {[%clk 0:00:26.8]}
25. Kd3 {[%clk 0:01:09.5]} 25... Kf7 {[%clk 0:00:25.6]} 26. Kc4 {[%clk
0:00:51.7]} 26... Ke7 {[%clk 0:00:24.5]} 27. Be4 {[%clk 0:00:47.5]} 27... Kd6
{[%clk 0:00:22.9]} 28. Bd3 {[%clk 0:00:40]} 28... Kc6 {[%clk 0:00:21.6]} 29. h4
{[%clk 0:00:39.5]} 29... f5 {[%clk 0:00:19]} 30. h5 {[%clk 0:00:34.8]} 30... a5
{[%clk 0:00:17.9]} 31. g4 {[%clk 0:00:23.9]} 31... Nc3 {[%clk 0:00:16.4]} 32.
hxg6 {[%clk 0:00:18.2]} 32... hxg6 {[%clk 0:00:13.7]} 33. gxf5 {[%clk
0:00:17.5]} 33... gxf5 {[%clk 0:00:13.1]} 34. Bxf5 {[%clk 0:00:16.2]} 34... Ne2
{[%clk 0:00:12.7]} 35. Bd3 {[%clk 0:00:10.6]} 35... Nf4 {[%clk 0:00:12.4]} 36.
Be4+ {[%clk 0:00:10.9]} 36... Kb6 {[%clk 0:00:11.1]} 37. d5 {[%clk 0:00:09.4]}
37... Nh5 {[%clk 0:00:09.6]} 38. d6 {[%clk 0:00:07.1]} 38... Nf6 {[%clk
0:00:08.8]} 39. Kd4 {[%clk 0:00:05.9]} 39... Nd7 {[%clk 0:00:07.2]} 40. f4
{[%clk 0:00:05.3]} 40... Nc5 {[%clk 0:00:06.5]} 41. f5 {[%clk 0:00:04.3]} 41...
Nd7 {[%clk 0:00:05.9]} 42. Bd5 {[%clk 0:00:02.7]} 42... Kb5 {[%clk 0:00:05.2]}
43. Be6 {[%clk 0:00:03]} 43... Nf6 {[%clk 0:00:02.8]} 44. Ke5 {[%clk 0:00:03.5]}
44... Ne8 {[%clk 0:00:01.6]} 45. d7 {[%clk 0:00:03.9]} 1-0